Cogmind - Beta 13 X1 @@@ ROGUE MODE // 2023.08.11 @ 15:04:31 Player: aoemica Result: Escaped! Performance ------------- Evolutions (9) 4500 Regions Visited (13) 2600 Robots Destroyed (74) 370 Value Destroyed (1729) 1729 Prototype IDs (38) 760 Alien Tech Used (0) 0 Bonus (3881) 3881 TOTAL SCORE: 13840 Bonus ------- Follower Combat Kills 120 Entered DSFs 500 Aligned with FarCom 300 Win 3000 Friendly Fire -39 Cogmind --------- Core Integrity 1600/1600 Matter 160/300 Energy 191/200 System Corruption 0% Temperature Cool (21) Movement Flying (20) Location To Epsilon Eridani Parts ------- > --- POWER (2) -------- Micro Fission Core Micro Fission Core > --- PROPULSION (8) --- Flight Unit Improved Flight Unit Improved Flight Unit Improved Flight Unit Nuclear Pulse Thruster Nuclear Pulse Thruster Cooled Nuclear Pulse Thruster Cooled Nuclear Pulse Thruster > --- UTILITY (13) ----- Power Amplifier Improved Heat Sink Structural Scanner Machine Analyzer Enhanced Optical Array Improved Propulsion Shielding Improved Light Armor Plating Hacking Suite Hacking Suite Advanced Hacking Suite Advanced Hacking Suite Advanced Hacking Suite Advanced System Shield > --- WEAPON (2) ------- Grenade Launcher Longsword +1 > --- INVENTORY (5) ---- ECM Suite Improved Reaction Control System Hardened Medium Armor Plating Layered Light Armor Plating Graphene Brace Peak State ------------ > --- POWER ------------ Micro Fission Core Micro Fission Core > --- PROPULSION ------- Flight Unit Improved Flight Unit Improved Flight Unit Improved Flight Unit Nuclear Pulse Thruster Nuclear Pulse Thruster Cooled Nuclear Pulse Thruster Cooled Nuclear Pulse Thruster > --- UTILITY ---------- Power Amplifier Improved Heat Sink Structural Scanner Machine Analyzer Enhanced Optical Array Improved Propulsion Shielding Improved Light Armor Plating Hacking Suite Hacking Suite Advanced Hacking Suite Advanced Hacking Suite Advanced Hacking Suite Advanced System Shield > --- WEAPON ----------- Grenade Launcher Longsword +1 > --- INVENTORY -------- ECM Suite Improved Reaction Control System Hardened Medium Armor Plating Layered Light Armor Plating Graphene Brace [Rating: 110] Favorites ----------- Power Ion Engine Engine Ion Engine Power Core Micro Fission Core Propulsion Light Treads Treads Light Treads Leg Aluminum Leg Flight Unit Improved Flight Unit Utility Improved Heat Sink Device Improved Heat Sink Storage High-capacity Storage Unit Processor Improved Signal Interpreter Hackware Hacking Suite Protection Improved Light Armor Plating Weapon Heavy Particle Gun Energy Gun Heavy Particle Gun Energy Cannon Beam Cannon Ballistic Gun Assault Rifle Ballistic Cannon Light Cannon Launcher Grenade Launcher Slashing Weapon Longsword +1 Build | -11 -10 -10 -10 -9 -8 -7 -6 -5 -4 -3 -2 -2 -1 ------- Run | Jun Mat Min Exi Min Mat Fac Fac Fac Fac Res Res DSF Acc Slots Evolved 18 | . . . . . 4 2 2 2 2 2 2 . 2 Power 1 | . . . . . . . . . . 1 . . . Propulsion 6 | . . . . . 1 1 1 . 1 . 1 . 1 Utility 11 | . . . . . 3 1 1 2 1 1 1 . 1 Weapon . | . . . . . . . . . . . . . . Parts Attached 97 | . 12 4 . 4 40 3 10 4 4 4 2 3 7 Power 6 | . 1 1 . . 2 . . 1 . 1 . . . Engine 4 | . 1 1 . . 2 . . . . . . . . Core 2 | . . . . . . . . 1 . 1 . . . Reactor . | . . . . . . . . . . . . . . Propulsion 25 | . 5 1 . . 13 1 1 . 2 . 1 . 1 Treads 13 | . 2 1 . . 10 . . . . . . . . Leg 3 | . 3 . . . . . . . . . . . . Wheel . | . . . . . . . . . . . . . . Hover . | . . . . . . . . . . . . . . Flight 9 | . . . . . 3 1 1 . 2 . 1 . 1 Utility 43 | . 1 1 . 1 12 2 8 3 2 3 1 3 6 Device 21 | . . 1 . 1 9 . 2 1 1 2 1 1 2 Storage 1 | . 1 . . . . . . . . . . . . Processor 5 | . . . . . 2 . 3 . . . . . . Hackware 9 | . . . . . . 1 . 1 1 1 . 1 4 Protection 7 | . . . . . 1 1 3 1 . . . 1 . Artifact . | . . . . . . . . . . . . . . Weapon 23 | . 5 1 . 3 13 . 1 . . . . . . Energy Gun 8 | . 2 . . . 6 . . . . . . . . Energy Cannon 3 | . 1 . . 1 1 . . . . . . . . Ballistic Gun 4 | . 2 . . 1 1 . . . . . . . . Ballistic Cannon 1 | . . 1 . . . . . . . . . . . Launcher 4 | . . . . 1 2 . 1 . . . . . . Special Weapon . | . . . . . . . . . . . . . . Impact Weapon . | . . . . . . . . . . . . . . Slashing Weapon 3 | . . . . . 3 . . . . . . . . Piercing Weapon . | . . . . . . . . . . . . . . Special Melee Weapon . | . . . . . . . . . . . . . . Unidentified Prototypes 1 | . . . . . 1 . . . . . . . . Parts Lost 3 | . 1 . . . 2 . . . . . . . . Power 2 | . 1 . . . 1 . . . . . . . . Propulsion . | . . . . . . . . . . . . . . Utility 1 | . . . . . 1 . . . . . . . . Weapon . | . . . . . . . . . . . . . . Highest Loss Streak 1 | . 1 . . . 1 . . . . . . . . To Critical Strikes . | . . . . . . . . . . . . . . Average Slot Usage (%) 92 | . 85 96 71 93 98 92 97 99 96 95 100 100 98 Engine 9 | . 14 14 14 14 8 7 6 1 . . . . . Treads 19 | . 16 28 28 28 26 . . . . . . . . Leg 2 | . 11 . . . . . . . . . . . . Flight 6 | . . . . . . 30 33 29 31 28 30 30 31 Device 15 | . . 11 14 14 25 15 13 17 17 19 21 21 20 Storage 9 | . 14 14 14 14 9 . . . . . . . . Processor 5 | . . . . . 8 15 18 12 10 9 8 8 8 Hackware 2 | . . . . . . 7 6 10 10 13 13 13 15 Protection 2 | . . . . . 1 7 6 10 10 9 8 8 8 Energy Gun 6 | . 9 . . . 13 . . . . . . . . Energy Cannon 3 | . 4 14 . 9 1 . . . . . . . . Ballistic Gun 4 | . 13 4 . 10 1 . . . . . . . . Ballistic Cannon 1 | . . 9 . . . . . . . . . . . Launcher 1 | . . . . 1 . . 5 5 5 4 4 4 4 Slashing Weapon 1 | . . . . . . 7 6 5 5 4 4 4 4 Naked Turns . | . . . . . . . . . . . . . . Heaviest Build 59 | 11 50 52 46 51 59 13 16 19 21 26 27 33 29 Greatest Support 60 | 20 40 40 40 40 60 19 23 23 31 31 37 37 39 Greatest Overweight (x) 3 | . 1 1 1 1 3 . . . . . . 1 . Average Overweight (x) . | . . 1 1 1 . . . . . . . . . Largest Inventory Capacity 20 | 8 20 20 20 20 20 20 5 5 5 5 5 5 5 Average Capacity 15 | 8 14 20 20 20 20 5 5 5 5 5 5 5 5 Most Carried 20 | 6 20 20 20 20 20 6 5 5 5 5 4 5 5 Average Carried 15 | 6 11 19 19 19 19 4 4 4 4 4 3 4 4 Final Capacity 20 | 8 20 20 20 20 20 5 5 5 5 5 5 5 5 Final Carried 20 | 6 20 19 20 20 7 5 5 5 5 5 4 5 5 Class Distribution -------------------- 54% | Mutant 23% | Scavenger-Mutant 6% | Hacker-Scout 5% | Hacker-Ninja 4% | Scout Dominant Class ---------------- Mutant | -10/Materials Mutant | -10/Mines Mutant | -10/Exiles Mutant | -9/Mines Scavenger-Mutant | -8/Materials Scavenger-Scout | -7/Factory Scout | -6/Factory Hacker-Scout | -5/Factory Hacker-Scout | -4/Factory Hacker-Ninja | -3/Research Hacker-Ninja | -2/Research Hacker-Assassin | -2/DSF Hacker-Ninja | -1/Access Resources | -11 -10 -10 -10 -9 -8 -7 -6 -5 -4 -3 -2 -2 -1 ----------- Run | Jun Mat Min Exi Min Mat Fac Fac Fac Fac Res Res DSF Acc Matter Collected 1507 | 200 292 119 61 80 415 30 180 40 . 90 . . . Remotely . | . . . . . . . . . . . . . . Salvage Created 3399 | . 546 244 . 39 1810 30 360 164 . 90 . . 116 Parts 148 | . 32 11 . 2 71 4 12 10 . 3 . . 3 Haulers Intercepted 13 | . 2 . . . 6 . 2 1 . 1 . . 1 Recyclers Shooed 4 | . 1 1 . 1 1 . . . . . . . . Parts Field Recycled . | . . . . . . . . . . . . . . Retrieved Matter . | . . . . . . . . . . . . . . Parts Self-Destructed . | . . . . . . . . . . . . . . Prevented . | . . . . . . . . . . . . . . Kills | -11 -10 -10 -10 -9 -8 -7 -6 -5 -4 -3 -2 -2 -1 ------- Run | Jun Mat Min Exi Min Mat Fac Fac Fac Fac Res Res DSF Acc Combat Hostiles Destroyed 44 | . 10 5 . 1 28 . . . . . . . . Guns 31 | . 10 1 . . 20 . . . . . . . . Cannons 8 | . . 4 . . 4 . . . . . . . . AOE 1 | . . . . 1 . . . . . . . . . Classes Destroyed 10 | . 6 1 . . 2 1 . . . . . . . Worker 3 | . . 1 . . 2 . . . . . . . . Builder 1 | . . . . . 1 . . . . . . . . Tunneler 1 | . . . . . . 1 . . . . . . . Hauler 13 | . 2 . . . 6 . 2 1 . 1 . . 1 Recycler 6 | . 2 1 . . 2 . 1 . . . . . . Operator 1 | . 1 . . . . . . . . . . . . Watcher 5 | . 2 . . . 1 . . 2 . . . . . Swarmer 15 | . 5 3 . . 7 . . . . . . . . Grunt 22 | . 5 2 . 1 14 . . . . . . . . Sentry 7 | . . . . . 7 . . . . . . . . Best Kill Streak 7 | . 4 7 . 1 5 1 1 1 . 1 . . 1 Combat Bots Only 5 | . 3 5 . 1 4 . . . . . . . . Max Kills in Single Turn 2 | . 1 1 . 1 2 1 1 1 . 1 . . 1 Gunslinging . | . . . . . . . . . . . . . . Exploded 1 | . . . . 1 . . . . . . . . . Melee . | . . . . . . . . . . . . . . Uniques/NPCs Destroyed . | . . . . . . . . . . . . . . Combat | -11 -10 -10 -10 -9 -8 -7 -6 -5 -4 -3 -2 -2 -1 -------- Run | Jun Mat Min Exi Min Mat Fac Fac Fac Fac Res Res DSF Acc Damage Taken 2147 | . 495 119 . . 1406 21 34 . . 72 . . . Core 348 | . 111 10 . . 217 10 . . . . . . . Absorbed by Shields . | . . . . . . . . . . . . . . Regen/Repaired (Parts) 128 | . . . . . 128 . . . . . . . . Core Remaining (%) 90 | 100 . . . 51 60 98 100 100 100 100 . 100 100 Volleys Fired 218 | . 67 12 . 4 132 . . . . 2 . . 1 Largest 2 | . 2 2 . 2 2 . . . . 1 . . 1 Hottest 110 | . 110 80 . 80 110 . . . . 30 . . 30 Shots Fired 430 | . 135 25 . 5 262 . . . . 2 . . 1 Gun 371 | . 129 12 . 1 229 . . . . . . . . Cannon 52 | . 6 13 . 1 32 . . . . . . . . Launcher 7 | . . . . 3 1 . . . . 2 . . 1 Special . | . . . . . . . . . . . . . . Kinetic 110 | . 65 12 . 1 32 . . . . . . . . Thermal 313 | . 70 13 . 1 229 . . . . . . . . Explosive 7 | . . . . 3 1 . . . . 2 . . 1 Electromagnetic . | . . . . . . . . . . . . . . Robot Hit Streak 17 | . 8 9 . 8 17 . . . . . . . . Robot Miss Streak 5 | . 5 3 . . 3 . . . . . . . . Penetration Max . | . . . . . . . . . . . . . . Secondary Targets 2 | . 1 . . . 1 . . . . . . . . Max Gunslinging Chain 1 | . 1 . . . 1 . . . . . . . . Shots Hit Robots 300 | . 78 16 . 3 188 1 7 3 . 3 . . 1 Core Hits 118 | . 33 10 . 3 65 . 3 2 . 1 . . 1 Critical Kills . | . . . . . . . . . . . . . . Critical Parts Destroyed . | . . . . . . . . . . . . . . Critical Strikes 17 | . 4 . . . 12 . . . . 1 . . . Burn 16 | . 4 . . . 12 . . . . . . . . Sever 1 | . . . . . . . . . . 1 . . . Melee Attacks 71 | . . . . . 5 2 16 13 2 16 2 . 15 Impact . | . . . . . . . . . . . . . . Slashing 71 | . . . . . 5 2 16 13 2 16 2 . 15 Piercing . | . . . . . . . . . . . . . . Sneak Attacks 9 | . . . . . 1 1 4 1 . 1 . . 1 Combat Hostiles . | . . . . . . . . . . . . . . Follow-up Attacks . | . . . . . . . . . . . . . . Damage Inflicted 6293 | . 1017 289 . 94 3657 79 607 221 . 206 . . 123 Guns 3991 | . 931 63 . 13 2984 . . . . . . . . Cannons 812 | . 72 219 . 19 502 . . . . . . . . Explosions 58 | . . . . 58 . . . . . . . . . Melee 1368 | . . . . . 132 79 607 221 . 206 . . 123 Ramming 64 | . 14 7 . 4 39 . . . . . . . . Kinetic 827 | . 443 63 . 13 308 . . . . . . . . Thermal 3976 | . 560 219 . 19 3178 . . . . . . . . Explosive 58 | . . . . 58 . . . . . . . . . Electromagnetic . | . . . . . . . . . . . . . . Impact . | . . . . . . . . . . . . . . Slashing 1368 | . . . . . 132 79 607 221 . 206 . . 123 Piercing . | . . . . . . . . . . . . . . Highest Corruption 4 | . 4 4 4 4 . . . . . . . . . Average Corruption 3 | . 2 4 4 4 . . . . . . . . . Corruption Purged . | . . . . . . . . . . . . . . Corruption Blocked . | . . . . . . . . . . . . . . Effects 64 | . 20 21 17 6 . . . . . . . . . Message Errors 12 | . 2 5 2 3 . . . . . . . . . Matter Fused 21 | . 8 6 7 . . . . . . . . . . Heat Flow Errors 7 | . 3 2 2 . . . . . . . . . . Energy Discharges 5 | . 2 2 . 1 . . . . . . . . . Parts Rejected 2 | . 1 1 . . . . . . . . . . . Data Loss (minor) 11 | . 1 4 5 1 . . . . . . . . . Data Loss (major) 4 | . 2 . 1 1 . . . . . . . . . Misfires 2 | . 1 1 . . . . . . . . . . . Overload Shots . | . . . . . . . . . . . . . . Overflow Damage 204 | . . . . . 17 49 99 39 . . . . . Projectiles . | . . . . . . . . . . . . . . Explosions . | . . . . . . . . . . . . . . Melee 204 | . . . . . 17 49 99 39 . . . . . Knockbacks . | . . . . . . . . . . . . . . Impact . | . . . . . . . . . . . . . . Kinetic . | . . . . . . . . . . . . . . Secondary . | . . . . . . . . . . . . . . Self-Inflicted Damage 1 | . . . . 1 . . . . . . . . . Shots 1 | . . . . 1 . . . . . . . . . Rammed 12 | . 5 2 . 1 4 . . . . . . . . Targets Rammed 13 | . 6 2 . 1 4 . . . . . . . . Kicked 1 | . 1 . . . . . . . . . . . . Crushed . | . . . . . . . . . . . . . . Highest Temperature 400 | . 400 105 91 . 6 . . . . . . . . Average Temperature 58 | . 61 37 51 . 6 . . . . . . . . Received Heat Transfer 915 | . 150 15 . . 720 6 15 . . 9 . . . Effects 1 | . 1 . . . . . . . . . . . . Short Circuit 1 | . 1 . . . . . . . . . . . . Siege Activations . | . . . . . . . . . . . . . . Robots Corrupted . | . . . . . . . . . . . . . . Combat Hostiles . | . . . . . . . . . . . . . . Parts Fried . | . . . . . . . . . . . . . . Impact Corruptions . | . . . . . . . . . . . . . . Robots Melted 4 | . . . . . 4 . . . . . . . . Combat Hostiles 4 | . . . . . 4 . . . . . . . . Parts Melted 28 | . 3 1 . . 24 . . . . . . . . Heat Transferred 9361 | . 1887 444 . 37 6993 . . . . . . . . Parts Sabotaged . | . . . . . . . . . . . . . . Parts Stolen . | . . . . . . . . . . . . . . Parts Stripped . | . . . . . . . . . . . . . . Power Chain Reactions . | . . . . . . . . . . . . . . Missiles Intercepted . | . . . . . . . . . . . . . . Alert | -11 -10 -10 -10 -9 -8 -7 -6 -5 -4 -3 -2 -2 -1 ------- Run | Jun Mat Min Exi Min Mat Fac Fac Fac Fac Res Res DSF Acc Peak Influence 386 | . 201 175 . 73 386 184 244 156 90 331 192 144 210 Initial 186 | . . . . . 27 163 89 44 76 47 186 144 86 Average 119 | . 75 39 . 49 165 175 177 122 85 146 189 144 137 Maximum Alert Level 1 | . 1 . . . 1 . 1 . . 1 . . 1 Low Security (%) 78 | 100 97 100 . 100 56 100 50 100 100 76 100 100 90 Level 1 21 | . 2 . . . 43 . 49 . . 23 . . 9 Level 2 . | . . . . . . . . . . . . . . Level 3 . | . . . . . . . . . . . . . . Level 4 . | . . . . . . . . . . . . . . Level 5 . | . . . . . . . . . . . . . . High Security . | . . . . . . . . . . . . . . Max Security . | . . . . . . . . . . . . . . Squads Dispatched 13 | . 2 . . . 3 . . 1 2 4 . . 1 Investigation 3 | . . . . . . . . . 2 1 . . . Extermination 3 | . . . . . . . . 1 . 1 . . 1 Reinforcement 7 | . 2 . . . 3 . . . . 2 . . . Assault . | . . . . . . . . . . . . . . Garrison . | . . . . . . . . . . . . . . Intercept . | . . . . . . . . . . . . . . Searches Triggered . | . . . . . . . . . . . . . . Construction Impeded . | . . . . . . . . . . . . . . Haulers Reinforced . | . . . . . . . . . . . . . . Active Scanning Responses . | . . . . . . . . . . . . . . Cargo Convoy Interrupts . | . . . . . . . . . . . . . . Stealth | -11 -10 -10 -10 -9 -8 -7 -6 -5 -4 -3 -2 -2 -1 --------- Run | Jun Mat Min Exi Min Mat Fac Fac Fac Fac Res Res DSF Acc Distress Signals 9 | . 3 . . . 4 . . . . 2 . . . Communications Jammed . | . . . . . . . . . . . . . . Distress Signals . | . . . . . . . . . . . . . . Times Spotted 107 | . 28 9 . 3 40 1 5 3 . 15 . . 3 Peak Tracking Total 6 | . 4 2 . 3 5 1 4 1 . 6 . . 3 Tactical Retreats 9 | . . . . . . . 4 . . 4 . . 1 Traps | -11 -10 -10 -10 -9 -8 -7 -6 -5 -4 -3 -2 -2 -1 ------- Run | Jun Mat Min Exi Min Mat Fac Fac Fac Fac Res Res DSF Acc Traps Triggered 5 | . 3 . . . 1 . . . . . . 1 . Indirectly . | . . . . . . . . . . . . . . Trap Hack Attempts . | . . . . . . . . . . . . . . Triggered . | . . . . . . . . . . . . . . Disarmed . | . . . . . . . . . . . . . . Reprogrammed . | . . . . . . . . . . . . . . Reused . | . . . . . . . . . . . . . . Traps Extracted . | . . . . . . . . . . . . . . Installed . | . . . . . . . . . . . . . . Triggered . | . . . . . . . . . . . . . . Machines | -11 -10 -10 -10 -9 -8 -7 -6 -5 -4 -3 -2 -2 -1 ---------- Run | Jun Mat Min Exi Min Mat Fac Fac Fac Fac Res Res DSF Acc Machines Disabled 3 | . . 1 . . 1 . . . . . . . 1 Max in Single Turn 1 | . . 1 . . 1 . . . . . . . 1 Garrison Access 1 | . . . . . . . . 1 . . . . . Machines Repaired . | . . . . . . . . . . . . . . Machines Sabotaged . | . . . . . . . . . . . . . . Overloaded Fab Kills . | . . . . . . . . . . . . . . Hacking | -11 -10 -10 -10 -9 -8 -7 -6 -5 -4 -3 -2 -2 -1 --------- Run | Jun Mat Min Exi Min Mat Fac Fac Fac Fac Res Res DSF Acc Machines Accessed 36 | . 5 . 3 . 5 . 5 7 2 5 1 . 3 Terminals 25 | . 5 . . . 4 . 3 5 . 5 1 . 2 Fabricators 4 | . . . . . . . 1 . 2 . . . 1 Repair Stations 1 | . . . . . 1 . . . . . . . . Recycling Units 1 | . . . . . . . 1 . . . . . . Scanalyzers 1 | . . . . . . . . 1 . . . . . Garrison Access 1 | . . . . . . . . 1 . . . . . Total Hacks 105 | . 14 . 12 . 22 . 13 16 7 13 1 . 7 Successful 64 | . 5 . 12 . 13 . 6 8 7 7 1 . 5 Failed 41 | . 9 . . . 9 . 7 8 . 6 . . 2 Catastrophic 4 | . 2 . . . 1 . 1 . . . . . . Database Lockouts . | . . . . . . . . . . . . . . Manual 37 | . 5 . 1 . 8 . 3 5 3 9 . . 3 Terminals 67 | . 14 . . . 14 . 10 11 . 13 1 . 4 Fabricators 11 | . . . . . . . 1 . 7 . . . 3 Repair Stations 8 | . . . . . 8 . . . . . . . . Recycling Units 2 | . . . . . . . 2 . . . . . . Scanalyzers 2 | . . . . . . . . 2 . . . . . Garrison Access 3 | . . . . . . . . 3 . . . . . Terminal Hacks 38 | . 4 . 12 . 7 . 3 4 . 5 1 . 2 Record 11 | . . . 11 . . . . . . . . . . Robot Analysis 3 | . 2 . . . 1 . . . . . . . . Prototype ID Bank 6 | . 1 . . . 3 . 1 1 . . . . . Open Door 1 | . . . . . . . . . . . . . 1 Open DSF 2 | . . . . . . . . 1 . . 1 . . Level Access Points 4 | . . . . . . . 1 1 . 1 . . 1 Branch Access Points 2 | . . . . . 1 . . . . 1 . . . Terminal Index 1 | . . . . . . . . . . 1 . . . Locate Traps 4 | . 1 . . . . . 1 1 . 1 . . . Hauler Manifests 1 | . . . . . 1 . . . . . . . . Zone Layout 2 | . . . . . 1 . . . . 1 . . . Derelict Proto ID Bank 1 | . . . 1 . . . . . . . . . . Fabricator Hacks 6 | . . . . . . . . . 4 . . . 2 Load Schematic 4 | . . . . . . . . . 3 . . . 1 Build 2 | . . . . . . . . . 1 . . . 1 Repair Station Hacks 4 | . . . . . 4 . . . . . . . . Scan Component 2 | . . . . . 2 . . . . . . . . Repair 2 | . . . . . 2 . . . . . . . . Recycling Unit Hacks 1 | . . . . . . . 1 . . . . . . Retrieve Components 1 | . . . . . . . 1 . . . . . . Scanalyzer 2 | . . . . . . . . 2 . . . . . Insert Component 1 | . . . . . . . . 1 . . . . . Analyze 1 | . . . . . . . . 1 . . . . . Garrison Access Hacks 1 | . . . . . . . . 1 . . . . . Seal Access 1 | . . . . . . . . 1 . . . . . Unauthorized Hacks 12 | . 1 . . . 2 . 2 1 3 2 . . 1 Terminals 8 | . 1 . . . 2 . 2 1 . 2 . . . Track 1 | . . . . . . . 1 . . . . . . Assimilate 3 | . . . . . 1 . . 1 . 1 . . . Botnet 4 | . 1 . . . 1 . 1 . . 1 . . . Fabricators 4 | . . . . . . . . . 3 . . . 1 Prioritize 2 | . . . . . . . . . 1 . . . 1 Recompile 2 | . . . . . . . . . 2 . . . . Repair Stations . | . . . . . . . . . . . . . . Recycling Units . | . . . . . . . . . . . . . . Scanalyzers . | . . . . . . . . . . . . . . Garrison Access . | . . . . . . . . . . . . . . Data Cores Recovered . | . . . . . . . . . . . . . . Used . | . . . . . . . . . . . . . . Hacking Detections 28 | . 5 . . . 5 . 4 4 1 5 1 . 3 Full Trace Events 2 | . 1 . . . . . . . . 1 . . . Feedback Events . | . . . . . . . . . . . . . . Feedback Blocked . | . . . . . . . . . . . . . . Robot Schematics Acquired . | . . . . . . . . . . . . . . Robots Built . | . . . . . . . . . . . . . . Authchips . | . . . . . . . . . . . . . . Time . | . . . . . . . . . . . . . . Total Robot Build Rating . | . . . . . . . . . . . . . . Part Schematics Acquired 1 | . . . . . . . . 1 . . . . . Parts Built 2 | . . . . . . . . . 1 . . . 1 Authchips 2 | . . . . . . . . . 1 . . . 1 Time 140 | . . . . . . . . . 84 . . . 56 Total Part Build Rating 12 | . . . . . . . . . 6 . . . 6 Parts Repaired 2 | . . . . . 2 . . . . . . . . Time 64 | . . . . . 64 . . . . . . . . Parts Recycled . | . . . . . . . . . . . . . . Recycled Matter . | . . . . . . . . . . . . . . Retrieved Matter . | . . . . . . . . . . . . . . Retrieved Components 1 | . . . . . . . 1 . . . . . . Parts Scanalyzed 1 | . . . . . . . . 1 . . . . . Part Schematics Acquired 1 | . . . . . . . . 1 . . . . . Parts Damaged . | . . . . . . . . . . . . . . Bothacking | -11 -10 -10 -10 -9 -8 -7 -6 -5 -4 -3 -2 -2 -1 ------------ Run | Jun Mat Min Exi Min Mat Fac Fac Fac Fac Res Res DSF Acc Used RIF Installer . | . . . . . . . . . . . . . . Robots Hacked . | . . . . . . . . . . . . . . Non-combat . | . . . . . . . . . . . . . . Combat . | . . . . . . . . . . . . . . Robot Hacks Applied . | . . . . . . . . . . . . . . Relay Couplers Released . | . . . . . . . . . . . . . . Fabnet Peak Effective % . | . . . . . . . . . . . . . . Robots Rewired . | . . . . . . . . . . . . . . Allies Hacked . | . . . . . . . . . . . . . . Hacks Repelled . | . . . . . . . . . . . . . . Allies | -11 -10 -10 -10 -9 -8 -7 -6 -5 -4 -3 -2 -2 -1 -------- Run | Jun Mat Min Exi Min Mat Fac Fac Fac Fac Res Res DSF Acc Total Allies 5 | . . 3 . . . . . 1 . 1 . . . Largest Group 3 | . . 3 2 2 1 . . 1 1 1 . . . Highest-Rated Group 45 | . . 40 24 24 8 . . 26 26 45 . . . Highest-Rated Ally 45 | . . 16 16 16 8 . . 26 26 45 . . . Total Orders 4 | . . 2 . . . . . . 2 . . . . STAY 2 | . . 1 . . . . . . 1 . . . . FOLLOW 2 | . . 1 . . . . . . 1 . . . . Ally Attacks 24 | . . 13 . 11 . . . . . . . . . Total Damage 242 | . . 156 . 86 . . . . . . . . . Kills 4 | . . 2 . 2 . . . . . . . . . Allies Corrupted . | . . . . . . . . . . . . . . Allies Melted . | . . . . . . . . . . . . . . Intel | -11 -10 -10 -10 -9 -8 -7 -6 -5 -4 -3 -2 -2 -1 ------- Run | Jun Mat Min Exi Min Mat Fac Fac Fac Fac Res Res DSF Acc Robot Analysis Total 3 | . 2 . . . 1 . . . . . . . . Derelict Logs Recovered 1 | . . 1 . . . . . . . . . . . Drone Launches . | . . . . . . . . . . . . . . Drone Recoveries . | . . . . . . . . . . . . . . Exploration | -11 -10 -10 -10 -9 -8 -7 -6 -5 -4 -3 -2 -2 -1 ------------- Run | Jun Mat Min Exi Min Mat Fac Fac Fac Fac Res Res DSF Acc Turns Passed 7565 | 5 1413 1008 773 250 2502 46 442 360 109 281 56 36 284 Spaces Moved 5541 | 5 609 381 322 97 1074 73 764 707 188 640 95 52 534 Core . | . . . . . . . . . . . . . . Treads 2191 | . 318 381 322 97 1073 . . . . . . . . Legs 296 | 5 291 . . . . . . . . . . . . Wheels . | . . . . . . . . . . . . . . Hover . | . . . . . . . . . . . . . . Flight 3054 | . . . . . 1 73 764 707 188 640 95 52 534 Fastest Speed 20 | 120 120 240 240 240 160 31 28 28 25 25 21 21 20 Average Speed 99 | 120 179 240 240 240 160 31 28 28 25 25 21 41 20 Slowest Speed 244 | 120 240 240 240 240 244 31 28 28 25 25 21 104 21 Overloaded Moves . | . . . . . . . . . . . . . . Propulsion Burnouts . | . . . . . . . . . . . . . . Robots Hopped 18 | . . . . . . . 2 . . 13 . . 3 Cave-ins Triggered . | . . . . . . . . . . . . . . Exploration Rate (%) 36 | 2 93 90 70 28 77 4 22 25 7 24 3 52 15 Regions Visited 13 Branch Regions 3 Pre-discovered Areas 1 | . . . 1 . . . . . . . . . . Known Exits Taken 6 | . . . . . 1 1 1 1 . 1 1 . . Unknown Exits Taken 6 | 1 1 1 1 1 . . . . 1 . . . . Scrap Searched 1 | . . . . 1 . . . . . . . . . Spaces Dug 64 | . . . . . 11 1 9 10 2 19 2 . 10 Terrain Destroyed 96 | . . . . 25 11 1 9 10 2 26 2 . 10 Melee 44 | . . . . . 3 1 9 10 2 13 2 . 4 Projectile . | . . . . . . . . . . . . . . AOE 52 | . . . . 25 8 . . . . 13 . . 6 Terrain Rammed . | . . . . . . . . . . . . . . Walls Destroyed . | . . . . . . . . . . . . . . Machines Disabled . | . . . . . . . . . . . . . . Actions | -11 -10 -10 -10 -9 -8 -7 -6 -5 -4 -3 -2 -2 -1 --------- Run | Jun Mat Min Exi Min Mat Fac Fac Fac Fac Res Res DSF Acc Total 7062 | 4 798 451 323 108 1600 94 975 855 248 727 128 64 687 Wait 1001 | . 69 43 1 1 283 15 174 127 49 78 29 . 132 Move 5493 | 4 608 380 321 96 1073 72 759 706 187 615 94 51 527 Hop 16 | . . . . . . . 2 . . 11 . . 3 Pick Up 62 | . 21 2 1 1 19 1 6 2 4 1 1 1 2 Fast Attach 27 | . 5 3 . 1 9 . 4 2 1 1 . . 1 Attach 30 | . 3 1 . 2 9 3 3 1 3 1 2 . 2 Detach 9 | . 3 2 . 1 2 . . 1 . . . . . Swap 40 | . 4 . . 1 22 . 3 1 . 2 . 3 4 Drop 73 | . 12 6 . . 42 1 8 2 2 . . . . Fire 218 | . 67 12 . 4 132 . . . . 2 . . 1 Melee 71 | . . . . . 5 2 16 13 2 16 2 . 15 Ram . | . . . . . . . . . . . . . . Kick 1 | . 1 . . . . . . . . . . . . Crush 12 | . 5 2 . 1 4 . . . . . . . . Escape Stasis 9 | . . . . . . . . . . . . 9 . Rewire . | . . . . . . . . . . . . . . Trap . | . . . . . . . . . . . . . . Miscellaneous . | . . . . . . . . . . . . . . Route ------- -11/Junkyard -10/Materials (discovered 4 exits: [*Mat x3] / [*Min]) -10/Mines (discovered 4 exits: [*Mat x2] / *Exi / [*Sub]) -10/Exiles (discovered 2 exits: [*Min x2]) -9/Mines -8/Materials (discovered 2 exits: *Fac x2) -7/Factory -6/Factory (discovered 5 exits: *Fac x4 / [*Ext]) -5/Factory (discovered 4 exits: *Fac x4) -4/Factory -3/Research (discovered 5 exits: *Res x3 / Qua x2) -2/Research -2/DSF -1/Access To Epsilon Eridani History --------- Turn | Location | Event 1 | -11/Junkyard | Discovered new exit (range 3) 6 | -11/Junkyard | Entered Materials 315 | -10/Materials | Build established: Mutant 319 | -10/Materials | Discovered new exit (range 16) 408 | -10/Materials | Discovered new exit (range 7) 616 | -10/Materials | Discovered new exit (range 11) 1028 | -10/Materials | Discovered new exit (range 3) 1419 | -10/Materials | Entered Mines 1661 | -10/Mines | Discovered new exit (range 7) 1704 | -10/Mines | Joined a pair of Derelicts in attacking an 0b10 outpost 1856 | -10/Mines | Assisted by bots powering up and referring to "LRC-V3" 1987 | -10/Mines | Discovered new exit (range 4) 2247 | -10/Mines | Discovered new exit (range 9) 2318 | -10/Mines | Learned Materials terminal intel 2409 | -10/Mines | Deemed a non-threat by the Exiles lab entrance 2411 | -10/Mines | Discovered new exit (range 5) 2427 | -10/Mines | Entered Exiles 2427 | -10/Exiles | Accompanied by 2 allies 2459 | -10/Exiles | Discovered new exit (range 15) 2492 | -10/Exiles | Met 8R-AWN 2526 | -10/Exiles | Met EX-HEX 2591 | -10/Exiles | Met EX-BIN 2624 | -10/Exiles | Aligned with FarCom system 2627 | -10/Exiles | Given EX-Vault access code 2682 | -10/Exiles | Opened EX-Vault 2714 | -10/Exiles | Found Longsword +1 2761 | -10/Exiles | Warned to stay clear of 0b10 Research branches 2828 | -10/Exiles | Met EX-DEC 2847 | -10/Exiles | Learned location of Zion (-7) 3166 | -10/Exiles | Discovered new exit (range 14) 3200 | -10/Exiles | Left Exiles lab with Longsword +1 3200 | -10/Exiles | Entered Mines 3200 | -9/Mines | Accompanied by 2 allies 3401 | -9/Mines | Discovered new exit (range 13) 3450 | -9/Mines | Entered Materials 3450 | -8/Materials | Accompanied by 1 ally 3450 | -8/Materials | Evolved 4 slots: Propulsion x1, Utility x3 3451 | -8/Materials | Loaded intel: 12 terminal locations 3971 | -8/Materials | Discovered new exit (range 16) 4560 | -8/Materials | Build established: Scavenger-Mutant 4799 | -8/Materials | Discovered new exit (range 5) 5584 | -8/Materials | Repaired Lgt. Deuterium Engine 5611 | -8/Materials | Repaired Lgt. Armor Plating 5932 | -8/Materials | Identified exit to Factory 5952 | -8/Materials | Entered Factory 5952 | -7/Factory | Evolved 2 slots: Propulsion x1, Utility x1 5971 | -7/Factory | Discovered new exit (range 18) 5998 | -7/Factory | Identified exit to Factory 5998 | -7/Factory | Entered another Factory area 5998 | -6/Factory | Evolved 2 slots: Propulsion x1, Utility x1 6144 | -6/Factory | Identified exit to Factory 6145 | -6/Factory | Discovered new exit (range 20) 6433 | -6/Factory | Build established: Scout 6440 | -6/Factory | Entered another Factory area 6440 | -5/Factory | Evolved 2 slots: Utility x2 6501 | -5/Factory | Identified exit to Factory 6794 | -5/Factory | Build established: Hacker-Scout 6800 | -5/Factory | Entered another Factory area 6800 | -4/Factory | Accompanied by 1 ally 6800 | -4/Factory | Evolved 2 slots: Propulsion x1, Utility x1 6861 | -4/Factory | Fabricated Cld. Nuclear Pulse Thruster? 6903 | -4/Factory | Discovered new exit (range 7) 6909 | -4/Factory | Entered Research 6909 | -3/Research | Accompanied by 1 ally 6909 | -3/Research | Evolved 2 slots: Power x1, Utility x1 6967 | -3/Research | Identified exit to Research 6967 | -3/Research | Identified exit to Quarantine 7145 | -3/Research | Spotted B-86 Titan 7190 | -3/Research | Entered another Research area 7190 | -2/Research | Evolved 2 slots: Propulsion x1, Utility x1 7246 | -2/Research | Identified exit to DSF 7246 | -2/Research | Entered DSF 7257 | -2/DSF | Discovered new exit (range 20) 7282 | -2/DSF | Entered Access 7282 | -1/Access | Evolved 2 slots: Propulsion x1, Utility x1 7356 | -1/Access | Fabricated Cld. Nuclear Pulse Thruster (x1) 7436 | -1/Access | Spotted B-99 Colossus 7454 | -1/Access | Identified exit to Surface 7561 | -1/Access | Spotted B-99 Colossus 7563 | -1/Access | Spotted B-99 Colossus 7566 | *** | Escaped! Last Messages --------------- 07361_ K-01 Serf cleans the Fabricator. 07367_ Acquired Lyr. Light Armor Plating. 07406_ >> Machine Analyzer network decryption results: 07406_ Recycling Unit x3 07419_ Acquired Hacking Suite. 07427_ >> Machine Analyzer network decryption results: 07427_ Terminal x2 07442_ Sneak attack on A-15 Conveyor. 07442_ A-15 Conveyor destroyed. 07451_ Connecting with Terminal... >>Access(Main) Found 1 level access point to Surface: (154,83) Map updated. 07532_ ALERT: Rogue bot located, Programmers report to Access Zone 6Z. 07536_ Connecting with Terminal... >>Open(Door) Sealed Barrier opened. 07536_ The Access Shell folds into the floor. 07538_ Sealed Heavy Doors breached. Map ----- +----------------------------------------------------+ | ?????????????????????????????????????????????????? | | ?????????????????????????????????????????????????? | | ?????????????????????????????????????????????????? | | ?????????????????????????????????????????????????? | | ?????????????????????????????????????????????????? | | ?????????????????????????????????????????????????? | | ?????????????????????????????????????????????????? | | ?????????????????????????????????????????????????? | | ??????????? ?????????????????????????????????????? | | ?????????? ????????????????????????????????????? | | ???? # ??# ????????????????????????????????????? | | ???? # #### ????????????????????????????????????? | | ????## #### ????????????????????????????????????? | | ?????? ??????????????????????w?????????????? | | ???????? ????????????????????????????????????? | | ????????? ????????????????????????????????????? | | ????????? ##??????????????????????????????????? | | ?????????## ##???#####??????????????????????????? | | ?????????## ###################???####### ??????? | | ?????????## ####### ###########???####### ??????? | | ?????????## """T""" ""??? # ??????? | | ?????????## """ """ "????BB # | | ?????????## "????BB ###+##### | | ?????????## "??? | | ?????????## "" """" | | ?????????## @" | | ?????????## """" | | ?????????## "??? BB ######### | | ?????????## "????BB ###### | | ?????????## ""??? ##??????? | | ?????????## ####### ###########???########??????? | | ########## ###################???########??????? | | ########## ##???#####??????????????????????????? | | # # ##??????????????????????????????????? | | # # ##??????????????????????????????????? | | ## " + #######################?????????????? | | ## """ # #######################?????????????? | | ## """ # h h ##?????????????? | | + " # ##?????????????? | | ## # ##########/######## ##?????????????? | | ## # ####### #### ##?????????????? | | ## # ####### #### ##?????????????? | | ########### ####### #### ##?????????????? | | ########### # #* #### ##?????????????? | | ?????????## # + #### ##?????????????? | | ?????????## # # !!! #### ##?????????????? | | ?????????## # # !!! #### ##?????????????? | | ?????????## # # !! #### ##?????????????? | | ?????????## # # #### # ?????????????? | | ????????? + + ########+#### # ?????????????? | +----------------------------------------------------+ Best States ------------- Heat Dissipation 73 Energy Generation 29 Energy Capacity 250 Matter Stores 300 Matter Capacity 300 Sight Range 22 Terrain Scan Density 10 ECM Strength 1 Power Amplification 20 Armor Coverage 150 Propulsion Shielding 66 Evasion (%) 76 Recoil Reduction 3 Offensive Hacking 62 Defensive Hacking 14 Authchip Count 1 Item Schematics ----------------- Cld. Nuclear Pulse Thruster | -5/Factory | Scanalyzed Robot Schematics ------------------ None Fabricated ------------ Cld. Nuclear Pulse Thruster | x1 | -4/Factory | Authchip Cld. Nuclear Pulse Thruster | x1 | -1/Access | Authchip Alien Tech Used ----------------- None Achievements -------------- None Challenges ------------ None Game ------ Seed IonSkeletonWeb Manual? 0 Play Time 01:18:32 Cumulative 927.8 hours Start 2023.08.11 @ 10:28:51 End 2023.08.11 @ 15:04:31 Sessions 1 Manual Loads 0 Difficulty Rogue Special Mode None Game No. 423 Rogue 422 Adventurer 1 Explorer 0 Win Type 0 Total 140 Types 35/12/21/4/2/1/60/3/2 Lore% 96 Gallery% 99 Achievement% 92 Wizard Run 0 Options --------- ASCII 0 Keyboard 1 Movement Numpad Keybinds 0 Fullscreen 0 Font 18/Smallcaps Map View 76x50 Tactical HUD 1 Map Filters NONE Filters NONE Steam 1 RUN: 7e9feae0-6191-4404-90af-060cd1abb62e